bitfinex-derivatives/quotes_BTCF0:USTF0_20250528
["timestamp","ask_amount","ask_price","bid_price","bid_amount"]
[1748420225682,0.31572403,108750.0,108740.0,1.85023608]
[1748420225881,0.31572403,108750.0,108740.0,1.9030516]
[1748420226790,0.31572403,108750.0,108740.0,2.02477475]
[1748420227389,0.2696319,108750.0,108740.0,2.05647475]
[1748420227687,0.2575319,108750.0,108740.0,2.08867475]
[1748420229085,0.2575319,108750.0,108740.0,1.84522845]
[1748420229285,0.2575319,108750.0,108740.0,2.08867475]
[1748420232383,0.0979,108750.0,108740.0,2.08867475]
[1748420232583,0.2817167,108750.0,108740.0,2.08867475]
[1748420235688,0.2817167,108750.0,108740.0,2.15873621]
[1748420236090,0.2817167,108750.0,108740.0,2.22382883]
[1748420236786,0.2817167,108750.0,108740.0,2.27053391]
[1748420236988,0.2817167,108750.0,108740.0,2.15873621]
[1748420237189,0.2817167,108750.0,108740.0,2.20544126]
[1748420238495,0.2817167,108750.0,108740.0,2.15873621]
[1748420239202,0.2817167,108750.0,108740.0,2.15861387]
[1748420240295,0.2817167,108750.0,108740.0,2.0885578]
[1748420241697,0.2817167,108750.0,108740.0,2.0883978]
[1748420242688,0.2817167,108750.0,108740.0,2.04018671]
[1748420243583,0.2697167,108750.0,108740.0,2.04018671]
[1748420245298,0.0343,108750.0,108740.0,2.21012095]
[1748420245502,0.2060167,108750.0,108740.0,2.34526964]
[1748420245796,0.0222,108750.0,108740.0,2.10678534]
[1748420246398,0.2060167,108750.0,108740.0,2.10678534]
[1748420247302,0.0222,108750.0,108740.0,2.10678534]
[1748420247807,0.2060167,108750.0,108740.0,2.10678534]
[1748420248006,0.2060167,108750.0,108740.0,2.22354649]
[1748420248693,0.0222,108750.0,108740.0,2.10678534]
[1748420249498,0.0222,108750.0,108740.0,2.23550145]
[1748420250407,0.34035783,108760.0,108750.0,0.1838167]
[1748420250604,0.37335783,108760.0,108750.0,1.29390945]
[1748420251107,0.37335783,108760.0,108750.0,1.17682388]
[1748420251816,0.37535783,108760.0,108750.0,1.17682388]
[1748420252402,0.32940493,108760.0,108750.0,1.17682388]
[1748420255308,0.32940493,108760.0,108750.0,1.18130597]
[1748420256409,0.32940493,108760.0,108750.0,1.1812543]
[1748420257911,0.28343733,108760.0,108750.0,1.1812543]
[1748420258814,0.28343733,108760.0,108750.0,0.9974376]
[1748420259013,0.28243733,108760.0,108750.0,1.1812543]
[1748420260009,0.28243733,108760.0,108750.0,1.30297745]
[1748420260209,0.28243733,108760.0,108750.0,1.1812543]
[1748420260816,0.28243733,108760.0,108750.0,1.18124857]
[1748420263416,0.28243733,108760.0,108750.0,1.69924857]
[1748420264019,0.28243733,108760.0,108750.0,1.69924705]
[1748420264609,0.28243733,108760.0,108750.0,1.60442194]
[1748420265716,0.28243733,108760.0,108750.0,1.57122194]
[1748420266803,0.28223733,108760.0,108750.0,1.57122194]
[1748420268722,0.27013733,108760.0,108750.0,1.57122194]
[1748420268922,0.27013733,108760.0,108750.0,1.60222194]
[1748420271024,0.27013733,108760.0,108750.0,1.48049879]
[1748420271217,0.27013733,108760.0,108750.0,1.60222194]
[1748420273216,0.27013733,108760.0,108750.0,1.64889488]
[1748420275529,0.27013733,108760.0,108750.0,1.69704705]
[1748420275726,0.27013733,108760.0,108750.0,2.05784705]
[1748420276022,0.25823733,108760.0,108750.0,2.05784705]
[1748420276729,0.24613733,108760.0,108750.0,2.1933523]
[1748420277129,0.24613733,108760.0,108750.0,2.12825968]
[1748420277518,0.24613733,108760.0,108750.0,2.1933523]
[1748420277720,0.24613733,108760.0,108750.0,2.12825968]
[1748420278426,0.24613733,108760.0,108750.0,1.40653116]
[1748420278629,0.24613733,108760.0,108750.0,2.19322378]
[1748420279329,0.24613733,108760.0,108750.0,2.05781254]
[1748420279925,0.27863733,108760.0,108750.0,2.01104559]
[1748420280230,0.26653733,108760.0,108750.0,2.01104559]
[1748420280932,0.25443733,108760.0,108750.0,2.01104559]
[1748420281430,0.24553733,108760.0,108750.0,2.01104559]
[1748420282130,0.23713733,108760.0,108750.0,2.01104559]
[1748420282530,0.23713733,108760.0,108750.0,2.05781651]
[1748420282731,0.23713733,108760.0,108750.0,2.01104559]
[1748420282932,0.22873733,108760.0,108750.0,2.01104559]
[1748420283833,0.22873733,108760.0,108750.0,2.07613821]
[1748420285634,0.22873733,108760.0,108750.0,2.07593713]
[1748420286634,0.1847998,108760.0,108750.0,2.07593713]
[1748420287133,0.2173998,108760.0,108750.0,2.07593713]
[1748420287635,0.2173998,108760.0,108750.0,2.01084451]
[1748420288730,0.2173998,108760.0,108750.0,2.07489124]
[1748420289237,0.2173998,108760.0,108750.0,2.00979862]
[1748420292232,0.2173998,108760.0,108750.0,2.00967862]
[1748420294647,0.0336,108760.0,108750.0,2.00967862]
[1748420295041,0.2173996,108760.0,108750.0,2.00967862]
[1748420296233,0.001,108760.0,108750.0,2.00967862]
[1748420298043,0.1847995,108760.0,108750.0,2.00967862]
[1748420298945,0.1847995,108760.0,108750.0,1.96290194]
[1748420299329,0.2147995,108760.0,108750.0,1.96290194]
[1748420299736,0.2147995,108760.0,108750.0,2.00965261]
[1748420300238,0.2147995,108760.0,108750.0,2.057831]
[1748420300440,0.2147995,108760.0,108750.0,2.07617295]
[1748420303041,0.2147995,108760.0,108750.0,2.19323455]
[1748420307452,0.2147995,108760.0,108750.0,2.19323272]
[1748420313254,0.031,108760.0,108750.0,2.19323272]
[1748420313955,0.2147994,108760.0,108750.0,2.19323272]
[1748420315657,0.2026994,108760.0,108750.0,2.23703797]
[1748420315857,0.1905994,108760.0,108750.0,2.23703797]
[1748420316059,0.1784994,108760.0,108750.0,2.23703797]
[1748420317261,0.33692693,108770.0,108760.0,0.1837994]
[1748420317456,0.33692693,108770.0,108760.0,1.22843256]
[1748420317648,0.33692693,108770.0,108760.0,1.25873256]
[1748420319355,0.36872693,108770.0,108760.0,1.25873256]
[1748420320355,0.36972693,108770.0,108760.0,1.25873256]
[1748420320654,0.36972693,108770.0,108760.0,1.36413316]
[1748420321159,0.36972693,108770.0,108760.0,1.25873256]
[1748420324064,0.36972693,108770.0,108760.0,1.36590556]
[1748420328162,0.36972693,108770.0,108760.0,0.9982994]
[1748420328357,0.36972693,108770.0,108760.0,1.12002255]
[1748420328760,0.36972693,108770.0,108760.0,1.08972255]
[1748420328961,0.49145008,108770.0,108760.0,0.5765995]
[1748420329163,0.49145008,108770.0,108760.0,1.57668265]
[1748420329460,0.49145008,108770.0,108760.0,1.57680265]
[1748420330159,0.49145008,108770.0,108760.0,1.61420974]
[1748420330560,0.49145008,108770.0,108760.0,1.10113183]
[1748420330865,0.49145008,108770.0,108760.0,1.61869183]
[1748420331454,0.49145008,108770.0,108760.0,1.04129233]
[1748420331660,0.49145008,108770.0,108760.0,1.22509183]
[1748420331861,0.49145008,108770.0,108760.0,1.22497183]
[1748420332763,0.49145008,108770.0,108760.0,1.22509183]
[1748420333167,0.49145008,108770.0,108760.0,0.56205087]
[1748420333468,0.49145008,108770.0,108760.0,1.26633691]
[1748420333666,0.49145008,108770.0,108760.0,1.31015949]
[1748420335266,0.49145008,108770.0,108760.0,1.26340732]
[1748420335464,0.49145008,108770.0,108760.0,1.31015949]
[1748420335663,0.49145008,108770.0,108760.0,1.26340732]
[1748420337969,0.49145008,108770.0,108760.0,1.36005282]
[1748420340772,0.49145008,108770.0,108760.0,1.31015949]
[1748420341071,0.49145008,108770.0,108760.0,1.39275282]
[1748420341269,0.49145008,108770.0,108760.0,1.39269808]
[1748420342667,0.49145008,108770.0,108760.0,1.34888604]
[1748420342961,0.49145008,108770.0,108760.0,1.46597161]
[1748420343470,0.49145008,108770.0,108760.0,1.40752864]
[1748420344058,0.49145008,108770.0,108760.0,1.4660014]
[1748420344369,0.49145008,108770.0,108760.0,1.70968604]
[1748420344675,0.49145008,108770.0,108760.0,1.82679936]
[1748420347270,0.49145008,108770.0,108760.0,1.74218604]
[1748420349474,0.49145008,108770.0,108760.0,1.22445079]
[1748420349681,0.49145008,108770.0,108760.0,1.74193079]
[1748420350574,0.46065008,108770.0,108760.0,1.74193079]
[1748420350783,0.46065008,108770.0,108760.0,1.86365394]
[1748420351382,0.46065008,108770.0,108760.0,1.74193079]
[1748420353877,0.46065008,108770.0,108760.0,1.7419329]
[1748420355877,0.43035008,108770.0,108760.0,1.7419329]
[1748420357284,0.39855008,108770.0,108760.0,1.7419329]
[1748420357470,0.39855008,108770.0,108760.0,1.3219329]
[1748420357778,0.39855008,108770.0,108760.0,1.7418929]
[1748420358478,0.42935008,108770.0,108760.0,1.7418929]
[1748420358675,0.42935008,108770.0,108760.0,1.74177173]
[1748420361076,0.42935008,108770.0,108760.0,0.55800908]
[1748420361282,0.49295008,108770.0,108760.0,1.04290908]
[1748420361482,0.49295008,108770.0,108760.0,1.04278908]
[1748420361791,0.49295008,108770.0,108760.0,1.16451223]
[1748420362283,0.49295008,108770.0,108760.0,1.16463223]
[1748420365185,0.49395008,108770.0,108760.0,1.16563223]
[1748420366982,0.49395008,108770.0,108760.0,1.11607741]
[1748420367181,0.49395008,108770.0,108760.0,1.16563675]
[1748420367687,0.49395008,108770.0,108760.0,1.16559675]
[1748420369888,0.49395008,108770.0,108760.0,1.19569675]
[1748420371894,0.49395008,108770.0,108760.0,0.77577675]
[1748420372193,0.49395008,108770.0,108760.0,1.19569675]
[1748420372589,0.49395008,108770.0,108760.0,1.37949645]
[1748420378582,0.49395008,108770.0,108760.0,1.19565675]
[1748420378786,0.49395008,108770.0,108760.0,1.37945635]
[1748420380392,0.49395008,108770.0,108760.0,1.37945733]
[1748420381400,0.49395008,108770.0,108760.0,1.49657065]
[1748420382303,0.49395008,108770.0,108760.0,1.37945733]
[1748420384496,0.49395008,108770.0,108760.0,1.19565773]
[1748420384690,0.49395008,108770.0,108760.0,1.37945743]
[1748420384892,0.49395008,108770.0,108760.0,1.37945884]
[1748420385493,0.49395008,108770.0,108760.0,1.19561914]
[1748420385698,0.49395008,108770.0,108760.0,1.37941874]
[1748420386299,0.49395008,108770.0,108760.0,1.19561914]
[1748420386500,0.49395008,108770.0,108760.0,1.37941884]
[1748420387099,0.49395008,108770.0,108760.0,1.19561914]
[1748420387297,0.49395008,108770.0,108760.0,0.55661599]
[1748420387513,0.88207323,108770.0,108760.0,0.52760209]
[1748420387799,1.0134337,108770.0,108760.0,0.56500793]
[1748420388001,0.89171055,108770.0,108760.0,0.98468793]
[1748420388215,0.89171055,108770.0,108760.0,0.98480793]
[1748420388507,0.85505008,108770.0,108760.0,0.98480793]
[1748420390404,0.85505008,108770.0,108760.0,0.46760793]
[1748420390612,0.85505008,108770.0,108760.0,0.88740793]
[1748420390810,0.85505008,108770.0,108760.0,0.88728793]
[1748420391011,0.85505008,108770.0,108760.0,0.88740793]
[1748420394413,0.85505008,108770.0,108760.0,0.46760793]
[1748420394710,0.85505008,108770.0,108760.0,0.88740793]
[1748420397411,0.85505008,108770.0,108760.0,0.96924014]
[1748420397917,0.85505008,108770.0,108760.0,0.79124459]
[1748420398311,0.85505008,108770.0,108760.0,0.92923171]
[1748420401106,0.85505008,108770.0,108760.0,0.92922915]
[1748420402715,0.38745008,108770.0,108760.0,1.595512]
[1748420403216,0.38745008,108770.0,108760.0,1.63030809]
[1748420403217,0.21977833,108770.0,108760.0,1.63030809]
[1748420403717,0.34150148,108770.0,108760.0,1.63030809]
[1748420404910,0.34150148,108770.0,108760.0,1.50858494]
[1748420405115,0.34150148,108770.0,108760.0,1.60484815]
[1748420405818,0.34150148,108770.0,108760.0,1.50858494]
[1748420406014,0.34150148,108770.0,108760.0,1.63030809]
[1748420406516,0.34150148,108770.0,108760.0,1.66767982]
[1748420407013,0.21977833,108770.0,108760.0,1.66767982]
[1748420407316,0.21977833,108770.0,108760.0,1.63030809]
[1748420407714,0.18593163,108770.0,108760.0,1.63030809]
[1748420408019,0.1378291,108780.0,108770.0,0.1837828]
[1748420408020,0.2297208,108780.0,108770.0,0.1837828]
[1748420408317,0.2297208,108780.0,108770.0,1.22676595]
[1748420408519,0.44330405,108790.0,108770.0,1.04298315]
[1748420408823,0.27577773,108790.0,108780.0,1.21646561]
[1748420409120,0.27577773,108790.0,108780.0,1.64818876]
[1748420410014,0.27577773,108790.0,108780.0,1.52646561]
[1748420410508,0.39750088,108790.0,108780.0,1.52646561]
[1748420410811,0.27577773,108790.0,108780.0,1.64818876]
[1748420411410,0.27877773,108790.0,108780.0,1.64918876]
[1748420412113,0.27777773,108790.0,108780.0,1.64918876]
[1748420415415,0.23183753,108790.0,108780.0,1.64918876]
[1748420415629,0.1837421,108800.0,108790.0,0.183749]
[1748420415824,0.1837421,108800.0,108790.0,1.39839354]
[1748420416010,0.3216442,108810.0,108800.0,0.1837322]
[1748420416322,0.3216442,108810.0,108800.0,1.69067446]
[1748420416323,0.1838503,108810.0,108800.0,1.69067446]
[1748420417922,0.1838503,108810.0,108800.0,1.56578429]
[1748420418323,0.1848503,108810.0,108800.0,1.56578429]
[1748420420013,0.1848503,108810.0,108800.0,1.02458816]
[1748420420214,0.1848503,108810.0,108800.0,1.30214429]
[1748420420418,0.1848503,108810.0,108800.0,0.9874522]
[1748420420721,0.2168503,108810.0,108800.0,1.62580833]
[1748420420922,0.1848503,108810.0,108800.0,1.63017042]
[1748420421117,0.1848503,108810.0,108800.0,1.65804882]
[1748420421837,0.1848503,108810.0,108800.0,1.63029042]
[1748420424420,0.1848503,108810.0,108800.0,1.21073042]
[1748420424621,0.1848503,108810.0,108800.0,1.63025042]
[1748420424822,0.2166503,108810.0,108800.0,1.53656584]
[1748420425018,0.2781503,108810.0,108800.0,1.65812197]
[1748420425617,0.2781503,108810.0,108800.0,1.63025042]
[1748420428329,0.2781503,108810.0,108800.0,1.66750638]
[1748420430929,0.2781503,108810.0,108800.0,1.15074638]
[1748420431122,0.2781503,108810.0,108800.0,1.66746638]
[1748420432232,0.2660503,108810.0,108800.0,1.63021042]
[1748420434131,0.2660503,108810.0,108800.0,1.11349042]
[1748420434331,0.2660503,108810.0,108800.0,1.63017042]
[1748420436125,0.2660503,108810.0,108800.0,1.66742638]
[1748420437641,0.2660503,108810.0,108800.0,1.54587025]
[1748420437844,0.2660503,108810.0,108800.0,1.66742638]
[1748420438033,0.2660503,108810.0,108800.0,1.66744969]
[1748420438234,0.2660503,108810.0,108800.0,1.63019373]
[1748420438836,0.2660503,108810.0,108800.0,1.66748393]
[1748420439141,0.2660503,108810.0,108800.0,1.78906337]
[1748420439643,0.2539503,108810.0,108800.0,1.78906337]
[1748420440230,0.2539503,108810.0,108800.0,1.75177317]
[1748420442241,0.2539503,108810.0,108800.0,1.79852534]
[1748420443336,0.2539503,108810.0,108800.0,1.6769459]
[1748420444841,0.2539503,108810.0,108800.0,1.7257472]
[1748420445236,0.2539503,108810.0,108800.0,1.90795314]
[1748420445544,0.2539503,108810.0,108800.0,1.86120097]
[1748420445746,0.2418503,108810.0,108800.0,1.98067728]
[1748420445933,0.2418503,108810.0,108800.0,1.86356396]
[1748420446132,0.2116503,108810.0,108800.0,1.79847134]
[1748420446933,0.2116503,108810.0,108800.0,1.55531246]
[1748420447141,0.2106503,108810.0,108800.0,1.80047134]
[1748420450949,0.2106503,108810.0,108800.0,1.84895232]
[1748420451647,0.2106503,108810.0,108800.0,1.84896012]
[1748420454638,0.2106503,108810.0,108800.0,1.80222195]
[1748420455741,0.2106503,108810.0,108800.0,1.84896989]
[1748420455942,0.2106503,108810.0,108800.0,1.84896848]
[1748420456142,0.2106503,108810.0,108800.0,1.44142054]
[1748420456348,0.2106503,108810.0,108800.0,1.80222054]
[1748420457242,0.1475503,108810.0,108800.0,1.80222054]
[1748420458256,0.1475503,108810.0,108800.0,1.80210054]
[1748420459371,0.1807503,108810.0,108800.0,1.84907945]
[1748420459744,0.1807503,108810.0,108800.0,1.72750001]
[1748420459945,0.2436503,108810.0,108800.0,1.72750001]
[1748420460147,0.2436503,108810.0,108800.0,1.72733174]
[1748420461146,0.2436503,108810.0,108800.0,1.72877174]
[1748420462851,0.2436503,108810.0,108800.0,1.72877255]
[1748420464258,0.2436503,108810.0,108800.0,1.68045264]
[1748420466864,0.2436503,108810.0,108800.0,1.68145264]
[1748420471063,0.2436503,108810.0,108800.0,1.72977351]
[1748420471469,0.2436503,108810.0,108800.0,1.72977549]
[1748420473168,0.2436503,108810.0,108800.0,1.85135493]
[1748420473359,0.2436503,108810.0,108800.0,1.72977549]
[1748420473558,0.2436503,108810.0,108800.0,1.85135493]
[1748420474358,0.1475503,108810.0,108800.0,1.85135493]
[1748420474660,0.1475503,108810.0,108800.0,1.80437602]
[1748420475756,0.1475503,108810.0,108800.0,1.80437833]
[1748420476266,0.1475503,108810.0,108800.0,1.86947095]
[1748420476469,0.1475503,108810.0,108800.0,1.98658427]
[1748420477158,0.1475503,108810.0,108800.0,1.86947095]
[1748420477349,0.1475503,108810.0,108800.0,1.98658427]
[1748420478256,0.1475503,108810.0,108800.0,1.86947095]
[1748420478870,0.1475503,108810.0,108800.0,1.98658497]
[1748420480168,0.1475503,108810.0,108800.0,1.86959486]
[1748420480471,0.1475503,108810.0,108800.0,1.98670664]
[1748420481374,9.166e-05,108820.0,108810.0,0.1837153]
[1748420481668,9.166e-05,108820.0,108810.0,1.79754325]
[1748420481877,0.18379006,108820.0,108810.0,1.67596381]
[1748420482065,0.18391006,108820.0,108810.0,1.67596381]
[1748420482265,0.18391006,108820.0,108810.0,1.74105643]
[1748420482565,0.18391006,108820.0,108810.0,1.67596381]
[1748420482755,0.18391006,108820.0,108810.0,1.67696381]
[1748420483063,0.18391006,108820.0,108810.0,1.20619381]
[1748420483274,0.18391006,108820.0,108810.0,1.72379381]
[1748420483572,0.18491006,108820.0,108810.0,1.72391381]
[1748420485567,0.18491006,108820.0,108810.0,1.67546474]
[1748420487469,0.18491006,108820.0,108810.0,1.72391381]
[1748420487769,0.18491006,108820.0,108810.0,1.60233437]
[1748420487969,0.18491006,108820.0,108810.0,1.72391381]
[1748420488270,0.18491006,108820.0,108810.0,1.67546474]
[1748420489161,0.18491006,108820.0,108810.0,1.49174944]
[1748420489362,0.18491006,108820.0,108810.0,1.67546474]
[1748420491171,0.18491006,108820.0,108810.0,2.03626474]
[1748420492167,0.12157944,108840.0,108820.0,0.1836984]
[1748420492168,0.1377567,108840.0,108820.0,0.1836984]
[1748420492360,0.04729493,108850.0,108840.0,0.1836647]
[1748420492361,0.23095513,108850.0,108840.0,0.1836647]
[1748420492561,0.18503913,108850.0,108840.0,1.21600515]
[1748420492759,0.00137893,108850.0,108840.0,1.32591568]
[1748420493074,0.18502673,108850.0,108840.0,1.32591568]
[1748420493278,0.1837678,108850.0,108840.0,1.32591568]
[1748420493468,0.1836478,108850.0,108840.0,1.32591568]
[1748420493665,0.1837678,108850.0,108840.0,1.32591568]
[1748420493974,0.1837678,108850.0,108840.0,1.15585835]
[1748420493975,0.1846478,108850.0,108840.0,1.15585835]
[1748420494675,0.1846478,108850.0,108840.0,1.10894782]
[1748420494676,0.1847678,108850.0,108840.0,1.10894782]
[1748420496577,0.1847678,108850.0,108840.0,1.14636538]
[1748420497968,0.1847678,108850.0,108840.0,0.78556538]
[1748420498174,0.1847678,108850.0,108840.0,1.50716538]
[1748420498377,0.1847678,108850.0,108840.0,1.55108797]
[1748420498780,0.1846478,108850.0,108840.0,1.55108797]
[1748420499166,0.1862077,108850.0,108840.0,1.42960485]
[1748420499367,0.1862077,108850.0,108840.0,1.55108797]
[1748420499578,0.2187077,108850.0,108840.0,1.55108797]
[1748420499778,0.1862077,108850.0,108840.0,1.50800538]
[1748420503780,0.1846478,108850.0,108840.0,1.50716538]
[1748420504078,0.1846478,108850.0,108840.0,1.50800538]
[1748420504279,0.1862077,108850.0,108840.0,1.50800538]
[1748420505668,0.2164077,108850.0,108840.0,1.47058782]
[1748420506173,0.2164077,108850.0,108840.0,1.3491047]
[1748420506374,0.2164077,108850.0,108840.0,1.47058782]
[1748420506574,0.2164077,108850.0,108840.0,1.50797508]
[1748420508583,0.2164077,108850.0,108840.0,1.55187664]
[1748420508776,0.2148478,108850.0,108840.0,1.55187664]
[1748420508983,0.2138478,108850.0,108840.0,1.55187664]
[1748420509180,0.2138478,108850.0,108840.0,1.55387664]
[1748420509481,0.2138478,108850.0,108840.0,1.55303664]
[1748420509683,0.2138478,108850.0,108840.0,1.55387664]
[1748420510291,0.2154077,108850.0,108840.0,1.55387664]
[1748420510874,0.2154077,108850.0,108840.0,1.58457664]
[1748420513690,0.2154077,108850.0,108840.0,1.58373664]
[1748420513890,0.2138478,108850.0,108840.0,1.58373664]
[1748420514392,0.2154077,108850.0,108840.0,1.54718938]
[1748420515896,0.2154077,108850.0,108840.0,1.6686749]
[1748420516590,0.0015599,108850.0,108840.0,1.71541762]
[1748420516792,0.2458311,108860.0,108850.0,0.1836479]
[1748420516982,0.2458311,108860.0,108850.0,1.73002408]
[1748420517287,0.2459511,108860.0,108850.0,1.73002408]
[1748420517487,0.2459511,108860.0,108850.0,1.79750804]
[1748420518193,0.2459511,108860.0,108850.0,1.79850804]
[1748420518488,0.2459511,108860.0,108850.0,1.84525076]
[1748420519593,0.2459511,108860.0,108850.0,1.64359378]
[1748420520486,0.2459511,108860.0,108850.0,1.69358485]
[1748420520687,0.2459511,108860.0,108850.0,1.74032757]
[1748420521390,0.2784511,108860.0,108850.0,1.84525076]
[1748420523595,0.2784511,108860.0,108850.0,1.69642601]
[1748420524391,0.2784511,108860.0,108850.0,1.69600027]
[1748420527998,0.2784511,108860.0,108850.0,1.57451595]
[1748420528195,0.2784511,108860.0,108850.0,1.69600027]
[1748420528891,0.2784511,108860.0,108850.0,1.69599518]
[1748420529599,0.2663511,108860.0,108850.0,1.69599518]
[1748420529898,0.2663511,108860.0,108850.0,1.64643494]
[1748420532196,0.2473511,108860.0,108850.0,1.64643494]
[1748420532705,0.2352511,108860.0,108850.0,1.64643494]
[1748420533799,0.2352511,108860.0,108850.0,1.64543494]
[1748420534104,0.47821974,108860.0,108850.0,0.36874272]
[1748420534308,0.51031974,108860.0,108850.0,0.39085703]
[1748420534603,0.87111974,108860.0,108850.0,0.77893703]
[1748420534797,0.87111974,108860.0,108850.0,0.35953703]
[1748420534993,0.87111974,108860.0,108850.0,0.40854407]
[1748420535194,0.87111974,108860.0,108850.0,0.40866407]
[1748420535401,0.87111974,108860.0,108850.0,0.35765703]
[1748420535902,0.74967845,108860.0,108850.0,0.35765703]
[1748420537502,0.74967845,108860.0,108850.0,0.38935703]
[1748420542510,0.74967845,108860.0,108850.0,0.35182]
[1748420544909,0.74967845,108860.0,108850.0,0.3517]
[1748420545119,0.74967845,108860.0,108850.0,0.35182]
[1748420545612,0.75167845,108860.0,108850.0,0.35182]
[1748420546007,0.75167845,108860.0,108850.0,0.38935703]
[1748420549608,0.75167845,108860.0,108850.0,0.43832042]
[1748420551215,0.75167845,108860.0,108850.0,0.35182]
[1748420552206,0.75167845,108860.0,108850.0,0.38322]
[1748420557914,0.8731573,108860.0,108850.0,0.38322]
[1748420558312,0.8731573,108860.0,108850.0,0.42075703]
[1748420559610,0.5123573,108860.0,108850.0,0.42075703]
[1748420559808,0.8731573,108860.0,108850.0,0.42075703]
[1748420560818,0.8731573,108860.0,108850.0,0.45115703]
[1748420563507,0.91049161,108860.0,108850.0,0.45115703]
[1748420566821,0.91049905,108860.0,108850.0,0.45115703]
[1748420567016,0.91049905,108860.0,108850.0,0.50020707]
[1748420567823,0.91049905,108860.0,108850.0,0.50020724]
[1748420569218,0.66749285,108860.0,108850.0,0.50020724]
[1748420569526,0.91049905,108860.0,108850.0,0.50020724]
[1748420569918,0.78899595,108860.0,108850.0,0.50020724]
[1748420572118,0.78898937,108860.0,108850.0,0.50020799]
[1748420573927,0.91049247,108860.0,108850.0,0.50020799]
[1748420575829,0.78898937,108860.0,108850.0,0.50020799]
[1748420576530,0.91049322,108860.0,108850.0,0.50020799]
[1748420578225,0.8731573,108860.0,108850.0,0.34952569]
[1748420578429,0.8731573,108860.0,108850.0,0.54020799]
[1748420580234,0.5123573,108860.0,108850.0,0.54020799]
[1748420580435,0.8731573,108860.0,108850.0,0.54020799]
[1748420580637,0.8731573,108860.0,108850.0,0.53978087]
[1748420582827,0.8731573,108860.0,108850.0,0.95906087]
[1748420583030,0.9104955,108860.0,108850.0,0.95906087]
[1748420583429,0.9104955,108860.0,108850.0,0.53978087]
[1748420583729,0.91049555,108860.0,108850.0,0.53978088]
[1748420585929,0.91049555,108860.0,108850.0,0.53966088]
[1748420586124,1.03199865,108860.0,108850.0,0.47786088]
[1748420586329,1.03199865,108860.0,108850.0,0.42024524]
[1748420586529,1.07496556,108860.0,108850.0,0.42024524]
[1748420587038,1.07496556,108860.0,108850.0,0.25024524]
[1748420587839,1.07490595,108860.0,108850.0,0.25024524]
[1748420588041,0.95340285,108860.0,108850.0,0.25024524]
[1748420588228,1.32974778,108860.0,108850.0,0.31424524]
[1748420588429,1.32974778,108860.0,108850.0,0.31872733]
[1748420589334,1.32962778,108860.0,108850.0,0.31872733]
[1748420589538,1.32974778,108860.0,108850.0,0.31872733]
[1748420590330,0.63536158,108860.0,108850.0,0.31872733]
[1748420590532,1.24614778,108860.0,108850.0,0.31872733]
[1748420590735,0.82686778,108860.0,108850.0,0.31872733]
[1748420591542,0.82674778,108860.0,108850.0,0.31424524]
[1748420591729,0.82686778,108860.0,108850.0,0.31424524]
[1748420592040,0.7895573,108860.0,108850.0,0.31424524]
[1748420592240,0.82685016,108860.0,108850.0,0.31424524]
[1748420594745,0.85795016,108860.0,108850.0,0.31424524]
[1748420595339,0.82685016,108860.0,108850.0,0.31424524]
[1748420595542,0.34454706,108860.0,108850.0,0.9517734]
[1748420595936,0.34442706,108860.0,108850.0,0.9517734]
[1748420596138,0.34454706,108860.0,108850.0,1.4682134]
[1748420596442,0.34442706,108860.0,108850.0,1.4682134]
[1748420596739,0.34454706,108860.0,108850.0,1.4682134]
[1748420596943,0.34454706,108860.0,108850.0,1.3467103]
[1748420597143,0.34454706,108860.0,108850.0,1.4682134]
[1748420599944,0.3071342,108860.0,108850.0,1.50575043]
[1748420600140,0.3072542,108860.0,108850.0,1.554114]
[1748420600345,0.3071342,108860.0,108850.0,1.51657697]
[1748420600644,0.3071342,108860.0,108850.0,1.51654762]
[1748420600645,0.3072542,108860.0,108850.0,1.51654762]
[1748420602345,0.1857511,108860.0,108850.0,1.51654762]
[1748420602936,0.3072542,108860.0,108850.0,1.51654762]
[1748420603133,0.1857511,108860.0,108850.0,1.51654762]
[1748420603334,0.3072542,108860.0,108850.0,1.51654762]
[1748420603537,0.3072542,108860.0,108850.0,1.56329034]
[1748420603836,0.3071342,108860.0,108850.0,1.56329034]
[1748420604043,0.3072542,108860.0,108850.0,1.56329034]
[1748420605035,0.3072542,108860.0,108850.0,1.56326491]
[1748420605840,0.1857511,108860.0,108850.0,1.56326491]
[1748420606549,0.1857511,108860.0,108850.0,1.56325262]
[1748420607649,0.1877511,108860.0,108850.0,1.56325262]
[1748420608248,0.1877511,108860.0,108850.0,1.4682134]
[1748420609235,0.1877511,108860.0,108850.0,1.50604114]
[1748420612351,0.1857511,108860.0,108850.0,1.50604114]
[1748420612852,0.1857511,108860.0,108850.0,1.50804114]
[1748420614755,0.3072542,108860.0,108850.0,1.50804114]
[1748420616456,0.2987542,108860.0,108850.0,1.50804114]
[1748420618257,0.2987542,108860.0,108850.0,1.68261813]
[1748420618651,0.2987542,108860.0,108850.0,1.56550635]
[1748420619455,0.1772511,108860.0,108850.0,1.56550635]
[1748420620551,0.1683511,108860.0,108850.0,1.56550635]
[1748420620754,0.2898542,108860.0,108850.0,1.56550635]
[1748420621955,0.1683511,108860.0,108850.0,1.56550635]
[1748420622561,0.1683511,108860.0,108850.0,1.56536107]
[1748420625566,0.1562511,108860.0,108850.0,1.56536107]
[1748420627954,0.1562511,108860.0,108850.0,1.20456107]
[1748420628154,0.1562511,108860.0,108850.0,1.56536107]
[1748420628363,0.1562511,108860.0,108850.0,1.56524107]
[1748420628554,0.1562511,108860.0,108850.0,1.71354107]
[1748420628755,0.1891511,108860.0,108850.0,1.71354107]
[1748420630360,0.3106542,108860.0,108850.0,1.71342107]
[1748420630863,0.3732542,108860.0,108850.0,1.71342107]
[1748420631054,0.3732542,108860.0,108850.0,1.86271029]
[1748420631657,0.3732542,108860.0,108850.0,1.89571511]
[1748420631864,0.3732542,108860.0,108850.0,1.79037153]
[1748420633371,0.4947573,108860.0,108850.0,0.88890843]
[1748420633571,0.4947573,108860.0,108850.0,1.41338978]
[1748420633774,0.4947573,108860.0,108850.0,1.38118978]
[1748420634065,0.4947573,108860.0,108850.0,1.38130978]
[1748420634461,0.4947573,108860.0,108850.0,1.50281288]
[1748420634662,0.3732542,108860.0,108850.0,1.50281288]
[1748420636069,0.3732542,108860.0,108850.0,1.39745153]
[1748420636271,0.3732542,108860.0,108850.0,1.51456331]
[1748420637266,0.3732542,108860.0,108850.0,1.33230386]
[1748420640062,0.3732542,108860.0,108850.0,1.33203758]
[1748420640868,0.3732542,108860.0,108850.0,0.44880418]
[1748420641068,0.89285644,108860.0,108850.0,0.92659944]
[1748420641258,0.89733853,108860.0,108850.0,0.41039944]
[1748420641458,0.86003939,108860.0,108850.0,1.02828877]
[1748420641672,0.86003939,108860.0,108850.0,0.92294716]
[1748420641874,0.86003939,108860.0,108850.0,0.92282716]
[1748420642167,0.86003939,108860.0,108850.0,0.95364716]
[1748420642375,0.8555573,108860.0,108850.0,0.95352716]
[1748420642576,0.8555573,108860.0,108850.0,0.95364716]
[1748420642870,0.8555573,108860.0,108850.0,0.92291581]
[1748420643261,0.8555573,108860.0,108850.0,0.50379581]
[1748420643474,0.8555573,108860.0,108850.0,1.02825742]
[1748420643873,0.8555573,108860.0,108850.0,1.05945742]